bitfinex/quotes_ETHUSD_20250106
["timestamp","ask_amount","ask_price","bid_price","bid_amount"]
[1736181642289,3.0075,3729.3,3728.2,1.0715]
[1736181642608,3.82652,3728.6,3727.4,1.0715]
[1736181642806,0.03352719,3728.5,3727.4,1.0715]
[1736181643190,2.71556719,3728.5,3728.4,35.0]
[1736181644700,2.72306719,3728.5,3728.4,35.0]
[1736181645909,2.71556719,3728.5,3728.4,35.0]
[1736181646215,2.99462391,3728.5,3728.4,35.0]
[1736181646502,4.13642391,3728.5,3728.4,35.0]
[1736181646977,4.17177736,3728.5,3728.4,35.0]
[1736181647163,7.17177736,3728.5,3728.4,35.0]
[1736181647363,7.13825017,3728.5,3728.4,35.0]
[1736181647559,7.13825017,3728.5,3727.1,1.1361]
[1736181647765,6.28412454,3727.7,3726.8,1.1361]
[1736181648099,0.03353515,3727.6,3726.8,1.1361]
[1736181648265,0.04235482,3727.6,3726.8,1.1361]
[1736181648466,0.04235482,3727.6,3726.9,0.02682812]
[1736181648716,2.72505482,3727.6,3727.5,35.0]
[1736181649020,4.32276682,3727.6,3727.5,35.0]
[1736181649168,2.68291,3727.3,3726.5,1.1445]
[1736181649371,0.0335392,3727.2,3726.5,1.1445]
[1736181649777,2.7165192,3727.2,3726.5,1.1445]
[1736181650187,2.7165192,3727.2,3727.1,35.0]
[1736181650381,5.73267591,3727.2,3727.1,35.0]
[1736181650583,5.24233003,3727.2,3727.1,35.0]
[1736181651163,9.36023003,3727.2,3727.1,35.0]
[1736181651367,9.35273003,3727.2,3727.1,35.0]
[1736181651813,3.03385549,3727.2,3727.1,35.0]
[1736181652112,0.03385549,3727.2,3727.1,35.0]
[1736181652408,0.00803831,3727.6,3727.1,35.0]
[1736181652409,0.00803831,3727.6,3727.2,1.1207]
[1736181652710,2.79246974,3727.6,3727.2,1.1207]
[1736181653204,2.79246974,3727.6,3727.5,35.0]
[1736181653404,2.68256,3727.8,3727.5,35.0]
[1736181653704,0.03353343,3727.9,3727.2,1.1207]
[1736181654128,2.68246,3728.0,3727.8,35.0]
[1736181654429,2.68246,3728.0,3727.2,1.1207]
[1736181654566,0.03353181,3727.9,3727.2,1.1207]
[1736181654769,2.68256,3727.8,3727.2,1.1207]
[1736181654993,3.0,3727.9,3727.7,35.0]
[1736181655189,5.68254,3727.8,3727.7,35.0]
[1736181657778,5.7173954,3727.8,3727.7,35.0]
[1736181661721,2.71416721,3727.8,3727.7,35.0]
[1736181662310,0.0348554,3727.8,3727.7,36.0033]
[1736181662654,2.52549454,3728.3,3727.7,36.0033]
[1736181662924,0.03514796,3728.2,3727.7,1.0033]
[1736181663323,0.56277805,3728.2,3728.1,35.0]
[1736181663527,6.24127295,3728.2,3728.1,35.0]
[1736181663752,5.20774454,3728.2,3728.1,35.0]
[1736181664047,5.24319321,3728.2,3728.1,35.0]
[1736181664189,5.24229477,3728.2,3728.1,35.0]
[1736181664387,6.13733724,3728.2,3728.1,35.0]
[1736181665653,9.13733724,3728.2,3728.1,35.0]
[1736181665986,9.14483724,3728.2,3728.1,35.0]
[1736181666687,0.959,3727.4,3726.2,1.0105]
[1736181666883,2.68324,3726.9,3726.2,1.0105]
[1736181667202,2.74993271,3726.8,3726.2,1.0105]
[1736181667510,0.06660271,3726.8,3726.2,1.0105]
[1736181667729,2.74986271,3726.8,3726.7,35.0]
[1736181668130,3.84570744,3726.8,3726.7,35.0]
[1736181668300,2.74986271,3726.8,3726.7,35.0]
[1736181668644,2.71632069,3726.8,3726.7,35.0]
[1736181670041,0.03306069,3726.8,3726.7,35.0]
[1736181670843,0.0347823,3726.8,3726.7,35.0]
[1736181671047,0.00168286,3726.8,3726.7,35.0]
[1736181671563,0.03455419,3726.8,3726.7,35.0]
[1736181671746,2.71781419,3726.8,3726.7,35.0]
[1736181673681,3.24549912,3726.8,3726.7,35.0]
[1736181673973,9.72249366,3726.8,3726.7,35.0]
[1736181674828,5.71781419,3726.8,3726.7,35.0]
[1736181675165,2.71781419,3726.8,3726.7,35.0]
[1736181675350,0.03455419,3726.8,3726.7,35.0]
[1736181675717,0.03455419,3726.8,3726.7,35.55]
[1736181675917,2.71636834,3727.5,3726.7,35.55]
[1736181675918,2.68283,3727.5,3726.7,35.55]
[1736181676151,2.68283,3727.5,3726.8,1.0162]
[1736181676371,2.52549454,3727.7,3726.8,1.0162]
[1736181676587,2.68285,3727.4,3726.8,1.0162]
[1736181676792,2.55902945,3727.7,3726.8,1.0162]
[1736181676996,2.68292,3727.3,3726.8,1.0162]
[1736181677502,2.68277,3727.5,3726.8,1.0162]
[1736181677854,0.03320927,3727.4,3726.8,1.0162]
[1736181678051,2.71604927,3727.4,3726.8,1.0162]
[1736181678472,0.03320927,3727.4,3726.8,1.0162]
[1736181679120,2.6827,3727.6,3726.8,1.0162]
[1736181679324,0.03215,3727.3,3726.8,1.0162]
[1736181679534,0.03353491,3727.8,3726.7,0.55]
[1736181679535,2.68256,3727.8,3726.9,0.57682749]
[1736181679671,0.03213016,3727.2,3727.0,1.0181]
[1736181679874,2.68241,3728.0,3727.1,0.02682564]
[1736181680103,2.68228,3728.2,3727.2,1.0181]
[1736181680305,2.68226,3728.2,3727.3,0.57682516]
[1736181680624,2.68233,3728.1,3727.3,0.55]
[1736181681173,2.68249,3727.9,3727.3,0.55]
[1736181681381,0.03353027,3727.8,3727.2,1.0181]
[1736181681613,2.68261,3727.7,3727.2,1.0181]
[1736181681929,2.68271,3727.6,3727.2,1.0181]
[1736181682282,0.03260639,3727.5,3727.2,1.0181]
[1736181682484,2.71538639,3727.5,3727.2,1.0181]
[1736181682795,0.03260639,3727.5,3727.2,1.0181]
[1736181683313,2.68248,3727.9,3727.2,1.0181]
[1736181683627,2.68248,3727.9,3727.3,0.02682603]
[1736181683831,0.03266591,3727.8,3727.3,0.02682603]
[1736181684182,0.03266591,3727.8,3727.2,1.0181]
[1736181684387,2.6824,3728.0,3727.2,1.0181]
[1736181684633,0.03264607,3727.7,3727.3,0.02682516]
[1736181684787,2.68233,3728.1,3727.2,1.0181]
[1736181684988,0.03262623,3727.6,3727.2,1.0181]
[1736181685188,2.68233,3728.1,3727.2,1.0181]
[1736181685418,0.03260639,3727.5,3727.3,0.57682386]
[1736181685733,6.23519454,3728.6,3727.3,0.55]
[1736181685734,0.03352963,3728.5,3727.3,0.55]
[1736181686031,2.68233,3728.1,3727.3,0.55]
[1736181686391,2.68225,3728.2,3727.3,0.55]
[1736181686613,2.68236,3728.1,3727.3,0.55]
[1736181687250,2.68241,3728.0,3727.3,0.55]
[1736181687455,5.52549454,3728.3,3727.2,1.0181]
[1736181687762,2.68311,3727.1,3726.8,0.9588]
[1736181687972,2.68326,3726.8,3726.7,0.00355831]
[1736181688264,5.69076,3726.8,3726.7,0.00355831]
[1736181688413,5.68326,3726.8,3726.7,0.00355831]
[1736181688610,6.90590185,3726.8,3726.7,0.00355831]
[1736181691343,3.0325614,3726.8,3726.7,0.00355831]
[1736181691860,5.7158214,3726.8,3726.7,0.00355831]
[1736181694466,6.6947214,3726.8,3726.7,0.00355831]
[1736181696270,5.7158214,3726.8,3726.7,0.00355831]
[1736181696968,5.7233214,3726.8,3726.7,0.00355831]
[1736181697150,6.91816299,3726.8,3726.7,0.00355831]
[1736181697465,7.86936299,3726.8,3726.7,8.31e-06]
[1736181697662,3.0075,3726.7,3725.3,0.17641831]
[1736181697963,2.68393,3725.9,3725.3,0.17641831]
[1736181698122,2.7174817,3725.9,3725.3,0.17641831]
[1736181698324,0.03217083,3725.8,3725.3,0.17641831]
[1736181698735,0.03217083,3725.8,3725.4,0.02684068]
[1736181698942,5.68375,3726.2,3725.1,0.55]
[1736181699117,0.03215097,3725.7,3725.1,0.55]
[1736181699463,0.03188247,3725.6,3725.0,3.21294122]
[1736181699666,5.68375,3726.2,3725.0,3.21294122]
[1736181699964,0.03195163,3725.5,3725.0,3.21294122]
[1736181700189,5.68375,3726.2,3725.0,3.21294122]
[1736181700474,0.03183625,3725.4,3725.0,3.21294122]
[1736181700651,3.0,3726.2,3725.1,2.68447]
[1736181700965,0.03167617,3725.3,3725.2,1.0319]
[1736181701173,2.52549454,3726.3,3725.3,1.0319]
[1736181701319,2.68349,3726.5,3725.4,0.02683731]
[1736181701522,0.03051376,3726.2,3725.5,1.0319]
[1736181701769,0.03055842,3726.1,3725.6,0.0268373]
[1736181702241,3.0,3726.4,3725.5,1.0319]
[1736181702384,2.52549454,3726.3,3725.5,0.5319]
[1736181702569,5.24267001,3726.3,3725.5,0.5319]
[1736181703024,0.03057827,3726.2,3725.5,0.5319]
[1736181703391,0.03057827,3726.2,3725.6,0.02683732]
[1736181703616,0.03057827,3726.2,3725.5,0.5319]
[1736181703773,2.55903915,3726.6,3725.5,0.5319]
[1736181703971,2.91006306,3726.6,3725.5,0.5319]
[1736181704216,0.02962902,3726.5,3725.5,0.5319]
[1736181704675,2.71311902,3726.5,3725.5,0.5319]
[1736181704878,0.02962902,3726.5,3725.5,0.5319]
[1736181705114,2.52549454,3726.3,3725.5,0.5319]
[1736181705474,0.02956945,3726.2,3725.5,0.5319]
[1736181705975,0.02956945,3726.2,3725.6,0.02683734]
[1736181706275,2.52549454,3726.6,3725.6,0.02683611]
[1736181706505,2.52549454,3726.6,3725.7,0.8284]
[1736181706670,0.02962902,3726.5,3725.7,3.51239]
[1736181706881,3.0,3726.8,3725.8,0.8284]
[1736181707084,0.02961733,3726.4,3726.3,0.8284]
[1736181707271,0.27939112,3727.4,3726.5,0.8284]
[1736181707471,0.03353337,3727.9,3727.0,3.5115]
[1736181707790,3.35096369,3728.1,3727.1,0.02682605]
[1736181708315,0.03353047,3728.2,3727.1,2.70986605]
[1736181708824,0.03353047,3728.2,3727.0,0.8284]
[1736181708977,2.68233,3728.1,3727.0,0.8284]
[1736181709175,0.03353247,3728.0,3727.0,0.8284]
[1736181709612,2.52549454,3728.0,3727.0,0.8284]
[1736181709932,0.03353329,3727.9,3727.0,0.8284]
[1736181710078,0.25590278,3727.8,3727.0,0.8284]
[1736181710273,0.28104071,3727.8,3727.0,0.8284]
[1736181710691,0.02513793,3727.8,3727.0,0.8284]
[1736181710909,0.03353332,3727.9,3727.0,0.8284]
[1736181713547,0.03353331,3728.0,3727.1,2.70985665]
[1736181713841,0.02521908,3727.9,3727.3,2.6829]
[1736181714050,0.03353232,3728.2,3727.4,0.02682444]
[1736181714554,0.03353232,3728.2,3727.1,2.68303]
[1736181714845,0.62787469,3728.2,3727.1,2.68303]
[1736181715044,0.03353056,3728.1,3727.1,2.68303]
[1736181716903,0.66140528,3728.2,3727.0,0.8284]
[1736181717134,0.62787469,3728.2,3727.3,2.68287]
[1736181717534,0.0244163,3728.1,3727.3,2.68287]
[1736181718496,0.0244163,3728.1,3726.5,2.68348]
[1736181718497,0.25,3727.8,3724.3,4.435]
[1736181718703,0.25,3727.5,3726.1,2.52549454]
[1736181719006,0.02491926,3727.4,3726.9,2.68312]
[1736181719314,0.25,3727.2,3726.5,2.68341]
[1736181719520,0.25,3727.2,3725.6,2.6841]
[1736181719521,0.25,3727.2,3726.7,2.6833]
[1736181719745,0.0249292,3727.1,3726.7,2.6833]
[1736181720120,0.25,3727.2,3726.7,2.6833]
[1736181720547,0.0249292,3727.1,3726.4,0.54584589]
[1736181720737,0.0249292,3727.1,3726.9,2.68314]
[1736181720940,0.5,3727.4,3727.0,2.68311]
[1736181721168,0.25,3727.4,3727.1,0.02682706]
[1736181721479,0.02496889,3727.3,3727.1,0.02682706]
[1736181721658,0.5,3727.6,3727.1,2.68302]
[1736181721988,0.25,3727.6,3727.2,0.02682631]
[1736181722150,0.5,3727.5,3726.8,2.68323]
[1736181722735,0.5,3727.5,3727.1,2.68304]
[1736181722980,0.25,3727.5,3727.2,0.02682651]
[1736181723682,0.25,3728.0,3727.5,2.68272]
[1736181723839,0.25,3727.9,3727.5,2.68272]
[1736181724260,0.25,3727.9,3727.0,2.68308]
[1736181724448,0.25,3727.9,3727.3,2.68283]
[1736181724936,0.02484742,3727.8,3727.3,2.68283]
[1736181725184,0.02484742,3727.8,3727.4,2.68283]
[1736181725694,0.25,3727.7,3727.0,2.68306]
[1736181725854,0.27492158,3727.7,3726.8,0.53419789]
[1736181726184,1.0264,3727.6,3727.0,2.6831]
[1736181726387,1.0264,3727.6,3726.4,2.68349]
[1736181726388,1.0264,3727.1,3726.4,2.68349]
[1736181726884,0.02478267,3727.0,3726.4,2.68349]
[1736181727084,0.02478267,3727.0,3725.5,2.52549454]
[1736181727246,0.25,3726.7,3725.8,2.68395]
[1736181727439,0.25,3726.7,3725.9,2.68386]
[1736181727640,0.02476457,3726.6,3725.9,2.68386]
[1736181727882,0.02476457,3726.6,3726.0,0.53369474]
[1736181728692,0.9868,3726.3,3725.4,0.00268]
[1736181728987,0.5,3726.2,3725.4,2.68688]
[1736181729137,0.52424372,3726.2,3724.6,4.18691576]
[1736181729344,0.52424372,3726.2,3725.3,0.54201443]
[1736181729581,0.25,3726.0,3725.3,3.22635443]
[1736181729940,0.02418414,3725.9,3725.3,3.22635443]
[1736181730141,0.27418414,3725.9,3725.3,2.68434]
[1736181730383,0.27418414,3725.9,3725.0,3.21259882]
[1736181730589,0.25,3725.8,3725.0,2.68453]
[1736181731087,0.02398087,3725.7,3725.0,2.68453]
[1736181732552,1.05018087,3725.7,3725.0,2.68453]
[1736181734179,1.05018087,3725.7,3724.8,2.68468]
[1736181734382,0.25,3725.6,3724.8,2.68468]
[1736181734759,0.02387572,3725.5,3724.8,2.68468]
[1736181735006,0.25,3725.1,3724.9,0.02684033]
[1736181735223,0.25,3725.1,3724.5,2.68491]
[1736181735504,0.02377638,3725.0,3724.5,2.68491]
[1736181735713,0.02377638,3725.0,3724.3,2.68504]
[1736181735892,0.02377638,3725.0,3724.5,0.54998321]
[1736181736098,0.02377638,3725.0,3724.7,2.68471]
[1736181736302,0.25,3725.4,3724.8,0.02684244]
[1736181736599,0.02375651,3724.9,3724.7,2.68471]
[1736181736800,0.25,3725.2,3724.7,2.68471]
[1736181737170,0.02365719,3725.1,3724.7,2.68471]
[1736181737604,0.25,3725.2,3724.7,2.68471]
[1736181737811,0.02363733,3725.0,3724.7,2.68471]
[1736181737990,0.02364979,3725.1,3724.7,2.68471]
[1736181738191,0.25,3725.4,3724.5,3.23484321]
[1736181738516,0.25,3725.4,3724.6,2.68483]
[1736181738719,0.02369693,3725.3,3724.5,0.54998321]
[1736181739008,0.02369693,3725.3,3724.6,3.10233608]
[1736181739267,0.02369693,3725.3,3725.2,2.68441]
[1736181739422,0.25,3726.1,3725.4,2.68427]
[1736181739586,0.25,3725.9,3725.2,2.68439]
[1736181739793,0.25,3725.6,3724.9,2.68458]
[1736181740118,1.2267,3725.6,3724.7,2.68476]
[1736181740325,1.2267,3725.6,3724.6,0.55]
[1736181740505,1.2267,3725.6,3724.6,2.68485]
[1736181740678,1.2267,3725.6,3724.5,0.54998321]
[1736181741074,1.2267,3725.6,3724.8,2.6847]
[1736181741413,1.2267,3725.6,3724.6,0.02684096]
[1736181741414,1.2176,3725.8,3724.9,0.55]
[1736181741618,1.2176,3725.8,3725.3,2.68433]
[1736181741830,0.25,3726.0,3725.5,2.68413]
[1736181741989,0.25,3726.3,3725.6,0.02683719]
[1736181742314,0.25,3726.3,3725.7,2.68398]
[1736181742521,1.2892,3726.5,3725.8,0.02683437]
[1736181742670,1.2892,3726.5,3726.0,2.68378]
[1736181743082,0.25,3726.3,3726.0,2.68378]
[1736181743282,1.0392,3726.5,3726.0,2.68378]
[1736181743487,1.0392,3726.5,3725.6,2.68409]
[1736181743805,0.25,3726.7,3726.2,2.68366]
[1736181744005,1.5067,3726.8,3726.2,2.68366]
[1736181744529,0.25,3726.4,3726.2,2.68366]
[1736181744838,1.2567,3726.8,3726.2,2.68366]
[1736181744839,1.5067,3726.8,3726.2,2.68366]
[1736181745133,0.25,3726.7,3726.2,2.68366]
[1736181745288,0.25,3726.4,3725.3,0.55]
[1736181745486,0.25,3726.4,3726.0,2.68381]
[1736181746103,0.25,3726.4,3725.5,2.68415]
[1736181746403,0.25,3725.8,3725.6,35.0]
[1736181746787,0.25,3725.8,3725.0,2.68455]
[1736181746988,0.25,3725.7,3725.0,2.68455]
[1736181747445,1.2245,3725.7,3725.6,35.0]
[1736181747940,3.90855,3725.7,3725.6,35.0]
[1736181748109,4.58030954,3725.7,3725.6,35.0]
[1736181748685,1.89625954,3725.7,3725.6,35.0]
[1736181749537,7.58030954,3725.7,3725.6,35.0]
[1736181750749,7.83030954,3725.7,3725.6,35.0]
[1736181751104,7.83780954,3725.7,3725.6,35.0]
[1736181751705,7.58780954,3725.7,3725.6,35.0]
[1736181752052,7.83780954,3725.7,3725.6,35.0]
[1736181752609,0.25,3724.6,3723.8,2.68542]
[1736181752804,0.25,3724.6,3723.5,0.6623]
[1736181752805,0.25,3724.6,3723.9,2.68535]
[1736181753333,0.25,3724.6,3723.1,2.68586]
[1736181753334,0.5,3723.8,3723.1,2.68586]
[1736181753647,0.5,3724.1,3723.7,35.0]
[1736181753815,0.25,3724.1,3723.7,35.0]
[1736181754017,1.725,3724.2,3723.8,0.02685184]
[1736181754218,0.5,3724.2,3723.6,1.24125014]
[1736181754417,0.5,3724.2,3723.7,2.68548]
[1736181754615,0.5,3724.4,3724.1,35.0]
[1736181754854,0.25,3724.3,3724.2,0.0268478]
[1736181755003,0.25,3724.4,3724.2,0.0268478]
[1736181755661,0.25,3724.3,3724.2,0.0268478]
[1736181755860,0.25,3724.3,3723.9,2.68534]
[1736181755861,0.25,3724.3,3724.0,0.02684757]
[1736181756020,0.25,3724.3,3724.2,35.0]
[1736181757645,1.4669,3724.3,3724.2,35.0]
[1736181759924,3.99239454,3724.3,3724.2,35.0]
[1736181760123,4.71663399,3724.3,3724.2,35.0]
[1736181760675,6.99239454,3724.3,3724.2,35.0]
[1736181761047,9.67745454,3724.3,3724.2,35.0]
[1736181762581,9.68495454,3724.3,3724.2,35.0]
[1736181763828,9.69245454,3724.3,3724.2,35.0]
[1736181764479,0.25,3722.8,3722.4,1.36231]
[1736181765161,2.68636,3722.5,3722.4,0.18341]
[1736181765369,0.25,3722.5,3722.4,35.18341]
[1736181765577,0.25,3722.7,3722.4,35.18341]
[1736181765779,1.984481,3723.6,3722.8,3.86774]
[1736181765780,0.25,3723.2,3722.8,3.86774]
[1736181765980,0.25,3723.2,3722.9,0.02685601]
[1736181766185,0.5,3724.0,3723.0,1.1816]
[1736181766356,2.34703815,3724.5,3723.9,36.1816]
[1736181766357,0.25,3724.2,3723.9,36.1816]
[1736181766551,2.84703815,3724.5,3724.0,0.02684967]
[1736181766753,1.37043815,3724.5,3724.1,2.68519]
[1736181767070,1.12043815,3724.5,3724.2,0.02684752]
[1736181767270,1.12043815,3724.5,3724.4,35.0]
[1736181767869,0.25,3724.6,3724.4,35.0]
[1736181768086,0.25,3724.6,3723.9,1.1816]
[1736181768272,0.25,3724.6,3724.1,2.6852]
[1736181768469,0.25,3724.7,3724.5,35.0]
[1736181768996,0.25,3724.7,3724.3,2.68506]
[1736181769598,0.25,3724.7,3724.6,35.0]
[1736181770617,0.5,3724.9,3724.6,35.0]
[1736181770920,0.25,3724.7,3724.6,3.92965]
[1736181771275,0.25,3724.7,3724.6,38.92965]
[1736181771732,0.25,3724.7,3724.6,36.2448]
[1736181772041,0.5,3724.9,3724.6,36.2448]
[1736181772170,0.25,3724.7,3724.6,1.2448]
[1736181772370,0.25,3724.7,3724.4,2.68498]
[1736181772634,0.25,3724.7,3724.6,35.0]
[1736181772910,0.5,3724.7,3724.6,35.0]
[1736181773127,0.5,3724.9,3724.6,35.0]
[1736181773314,0.25,3724.6,3724.3,1.2312]
[1736181773721,0.25,3724.6,3724.5,35.0]
[1736181774224,0.25,3724.7,3724.5,35.0]
[1736181774529,0.25,3724.6,3724.0,3.84525]
[1736181774850,0.25,3724.6,3724.5,35.0]
[1736181775212,0.25,3724.7,3724.5,35.0]
[1736181775411,0.25,3724.6,3724.0,1.16]
[1736181775582,2.52549454,3724.8,3724.0,1.16]
[1736181775583,0.25,3724.2,3724.0,1.16]
[1736181775782,0.25,3724.2,3724.1,35.0]
[1736181776189,0.25,3724.3,3724.1,35.0]
[1736181776389,0.25,3724.2,3724.0,1.16]
[1736181776633,0.25,3724.2,3724.0,1.18684777]
[1736181776893,0.25,3724.2,3724.1,35.0]
[1736181780355,10.63183454,3724.2,3724.1,35.0]
[1736181783146,7.79884,3724.2,3724.1,35.0]
[1736181783348,8.35634,3724.2,3724.1,35.0]
[1736181783564,10.88183454,3724.2,3724.1,35.0]
[1736181788383,0.5075,3724.2,3724.1,35.0]
[1736181788582,0.5,3724.2,3724.1,35.0]
[1736181790088,6.2187031,3724.2,3724.1,35.0]
[1736181790287,10.52443454,3724.2,3724.1,35.0]
[1736181791158,9.97443454,3724.2,3724.1,35.0]
[1736181791484,11.79037399,3724.2,3724.1,35.0]
[1736181792352,7.29143399,3724.2,3724.1,35.0]
[1736181792751,7.29893399,3724.2,3724.1,35.0]
[1736181794397,9.98407399,3724.2,3724.1,35.0]
[1736181795294,10.53407399,3724.2,3724.1,35.0]
[1736181795593,10.54157399,3724.2,3724.1,35.0]
[1736181796990,9.99157399,3724.2,3724.1,35.0]
[1736181797196,9.98407399,3724.2,3724.1,35.0]
[1736181798996,10.54157399,3724.2,3724.1,35.0]
[1736181799408,9.98407399,3724.2,3724.1,35.0]
[1736181799903,0.25,3722.7,3722.4,0.18341]
[1736181800051,0.2,3722.5,3722.4,0.18341]
[1736181800415,0.2,3722.5,3722.4,35.18341]
[1736181802403,4.03306,3722.5,3722.4,35.18341]
[1736181802614,4.38025503,3722.5,3722.4,35.18341]
[1736181802755,7.93775503,3722.5,3722.4,35.18341]
[1736181803068,7.904175,3722.5,3722.4,35.18341]
[1736181803495,7.911675,3722.5,3722.4,35.18341]
[1736181803675,7.361675,3722.5,3722.4,35.18341]
[1736181803880,7.04806,3722.5,3722.4,35.18341]
[1736181804119,7.59806,3722.5,3722.4,35.18341]
[1736181805193,7.59482817,3722.5,3722.4,35.18341]
[1736181806223,0.19676817,3720.5,3720.0,2.53865534]
[1736181806377,0.44676817,3720.3,3720.1,0.02687622]
[1736181806572,0.44676817,3720.3,3720.2,1.1418]
[1736181806573,0.25,3720.3,3720.2,1.1418]
[1736181806895,1.241,3721.3,3720.2,1.1418]
[1736181806896,0.25,3720.8,3720.2,1.1418]
[1736181807100,0.25,3720.8,3720.3,0.02687261]
[1736181807278,0.25,3720.8,3720.7,35.0]
[1736181809073,0.44676817,3720.8,3720.7,35.0]
[1736181812659,3.13435817,3720.8,3720.7,35.0]
[1736181812790,0.44676817,3720.8,3720.7,35.0]
[1736181813625,3.13435817,3720.8,3720.7,35.0]
[1736181813825,7.34775817,3720.8,3720.7,35.0]
[1736181814008,8.89594293,3720.8,3720.7,35.0]
[1736181815595,7.84155817,3720.1,3720.0,1.4303696]
[1736181815791,10.36705271,3720.1,3720.0,1.4303696]
[1736181816194,10.38205271,3720.1,3720.0,1.4303696]
[1736181816592,10.38205271,3720.1,3720.0,36.4303696]
[1736181816820,11.68905098,3720.1,3720.0,36.4303696]
[1736181817023,0.46176817,3719.5,3719.4,1.47673394]
[1736181817236,9.22579271,3719.5,3719.4,1.47673394]
[1736181817701,0.44676817,3719.5,3719.4,1.47673394]
[1736181817944,0.25,3719.8,3719.4,4.19214706]
[1736181818141,0.25,3719.8,3719.4,1.47673394]
[1736181818341,0.19676817,3719.5,3719.4,1.47673394]
[1736181818544,0.44676817,3719.5,3719.4,1.47673394]
[1736181818945,0.44676817,3719.5,3719.4,2.66513394]
[1736181818946,0.19676817,3719.5,3719.4,2.66513394]
[1736181819146,0.44676817,3719.5,3719.4,2.66513394]
[1736181819347,0.19676817,3719.5,3719.4,2.66513394]
[1736181820440,10.13479271,3719.5,3719.4,1.47673394]
[1736181820637,9.71810898,3719.5,3719.4,1.47673394]
[1736181820853,3.19676817,3719.5,3719.4,1.47673394]
[1736181821149,5.88529817,3719.5,3719.4,1.47673394]
[1736181822351,8.96829271,3719.5,3719.4,1.47673394]
[1736181823226,8.96829271,3719.5,3719.4,1.29194961]
[1736181823955,10.16389271,3719.5,3719.4,1.29194961]
[1736181824256,12.84211698,3719.5,3719.4,1.29194961]
[1736181824941,12.84211698,3719.5,3719.4,9.61e-06]
[1736181825258,0.44676817,3717.9,3716.2,0.00369183]
[1736181825408,16.81645817,3717.9,3716.9,1.1503]
[1736181825615,22.34195271,3717.9,3716.9,1.1503]
[1736181825814,22.35695271,3717.9,3716.9,1.1503]
[1736181826247,23.61405271,3717.9,3716.2,1.15399183]
[1736181826566,19.66726271,3717.9,3717.0,1.1952]
[1736181826761,19.66726271,3717.9,3717.2,1.7199615]
[1736181827065,19.65976271,3717.9,3717.2,1.69306312]
[1736181827714,17.12676817,3717.9,3717.4,2.69]
[1736181827949,14.12676817,3717.9,3717.8,2.83216333]
[1736181828863,14.12676817,3717.9,3717.8,1.63696333]
[1736181829666,14.12676817,3717.9,3717.8,4.32672333]
[1736181829957,13.68,3717.9,3717.8,5.55122333]
[1736181830322,13.68,3718.3,3717.8,2.86146333]
[1736181830761,13.68,3718.3,3718.2,2.68947]
[1736181830961,13.68,3718.3,3718.2,3.91157]
[1736181831466,9.68683779,3718.3,3718.2,3.91157]
[1736181831971,9.88360596,3718.3,3718.2,3.91157]
[1736181832123,8.56572186,3718.3,3718.2,3.91157]
[1736181832480,8.76249003,3718.3,3718.2,3.91157]
[1736181832627,8.56572186,3718.3,3718.2,3.91157]
[1736181833425,7.44572186,3718.3,3718.2,3.91157]
[1736181833621,5.7055281,3718.3,3718.2,3.91157]
[1736181833866,3.12,3718.3,3718.2,2.69697]
[1736181834163,3.12,3719.8,3719.7,2.68838]
[1736181834353,3.37,3719.8,3719.7,2.68838]
[1736181834551,3.12,3720.2,3719.5,0.0268809]
[1736181834751,3.12,3720.2,3719.1,3.16908484]
[1736181834752,3.12,3720.2,3720.1,3.88959]
[1736181835053,0.25,3720.5,3720.2,2.68802]
[1736181835054,3.12,3720.3,3720.2,2.68802]
[1736181839169,3.12,3720.4,3720.3,2.68795]
[1736181840949,3.12,3720.4,3720.3,3.84465]
[1736181841165,3.12,3720.7,3720.3,3.84465]
[1736181841550,3.12,3720.7,3720.6,2.68773]
[1736181841750,3.12,3720.7,3720.3,3.84465]
[1736181841751,3.12,3720.7,3720.4,2.68784]
[1736181841975,3.12,3720.7,3720.3,1.1567]
[1736181842214,3.12,3720.7,3720.5,2.68779]
[1736181843595,0.19676817,3720.1,3719.8,1.2278]
[1736181843806,0.19676817,3720.3,3719.8,1.2278]
[1736181844148,0.19676817,3720.3,3720.1,2.68808]
[1736181844355,0.19676817,3720.3,3720.2,0.02687739]
[1736181844587,0.19676817,3720.3,3719.8,1.2278]
[1736181844750,0.25,3720.4,3719.8,1.2278]
[1736181845575,0.19676817,3720.1,3719.9,2.71510587]
[1736181845783,0.19676817,3720.1,3719.9,2.68823]
[1736181846181,0.19676817,3720.1,3719.6,2.6884]
[1736181846374,0.19676817,3720.1,3719.4,1.73603563]
[1736181846596,0.19676817,3720.1,3719.6,2.6884]
[1736181846795,0.19676817,3720.1,3719.7,2.68835]
[1736181847293,0.19676817,3720.1,3719.8,2.71512772]
[1736181847493,0.19676817,3720.1,3719.9,0.02687779]
[1736181847697,0.19676817,3720.1,3719.4,0.52513563]
[1736181847698,0.25,3719.9,3719.4,0.52513563]
[1736181847997,0.25,3719.9,3719.8,2.68831]
[1736181848571,0.44676817,3719.9,3719.4,1.72663563]
[1736181848794,0.25,3719.8,3719.4,1.72663563]
[1736181849001,0.25,3719.5,3719.4,1.72663563]
[1736181849198,0.25,3719.5,3719.4,0.52513563]
[1736181849382,0.19676817,3719.3,3718.9,1.206]
[1736181849585,0.19676817,3719.1,3718.4,1.206]
[1736181849888,0.25,3718.9,3718.4,1.206]
[1736181850071,3.12,3718.9,3718.8,3.23758734]
[1736181850606,3.12,3718.9,3718.8,2.68903]
[1736181851451,3.12,3718.9,3718.7,0.53145694]
[1736181851957,3.37,3718.9,3718.7,0.5583445]